bitfinex-derivatives/quotes_BNBF0:USTF0_20250807
["timestamp","ask_amount","ask_price","bid_price","bid_amount"]
[1754563120090,0.22492753,774.11,772.73,0.85221427]
[1754563120394,0.22492753,774.11,772.72,0.85221427]
[1754563120790,0.22492753,774.11,772.76,0.85221427]
[1754563121392,0.22492753,774.11,772.75,0.85221427]
[1754563121788,0.22492753,774.11,772.73,0.85221427]
[1754563122195,0.22492753,774.11,772.55,1.1426031]
[1754563122495,0.22492753,774.11,772.72,0.84442762]
[1754563122691,0.22492753,774.11,772.78,0.84442762]
[1754563123196,0.22492753,774.11,772.67,0.84442762]
[1754563123592,0.22492753,774.11,772.64,0.84442762]
[1754563124297,0.22492753,774.11,772.63,0.84442762]
[1754563124497,0.22492753,774.11,772.54,0.84442762]
[1754563124797,0.22492753,774.11,772.49,0.84442762]
[1754563124998,0.86136472,774.1,772.35,0.84442762]
[1754563125695,0.22492753,774.11,772.38,0.84442762]
[1754563125994,0.22492753,774.11,772.36,0.84442762]
[1754563128597,0.86136472,773.88,772.13,0.84442762]
[1754563129203,0.86136472,773.87,772.12,0.84442762]
[1754563129996,0.86136472,773.9,772.11,0.84442762]
[1754563130401,0.86136472,773.88,772.12,0.84442762]
[1754563130799,0.86136472,773.89,772.13,0.84442762]
[1754563131000,0.86136472,773.88,772.12,0.84442762]
[1754563131602,0.86136472,773.9,772.15,0.84442762]
[1754563132004,0.86136472,773.91,772.17,0.84442762]
[1754563132302,0.86136472,773.88,772.2,0.84442762]
[1754563133001,0.86136472,773.93,772.24,0.84442762]
[1754563133202,0.86136472,773.92,772.25,0.84442762]
[1754563133806,0.86136472,773.94,772.27,0.84442762]
[1754563134504,0.86136472,773.91,772.29,0.84442762]
[1754563134701,0.86136472,773.9,772.29,0.84442762]
[1754563135405,0.86136472,773.89,772.29,0.84442762]
[1754563136006,0.86136472,773.86,772.27,0.84442762]
[1754563136607,0.86136472,773.86,772.28,0.84442762]
[1754563137407,0.86136472,773.85,772.28,0.84442762]
[1754563138306,0.86136472,773.84,772.28,0.84442762]
[1754563139006,0.86136472,773.84,772.29,0.84442762]
[1754563139203,0.86136472,773.83,772.29,0.84442762]
[1754563139708,0.86136472,773.77,772.33,0.84442762]
[1754563139905,0.86136472,773.79,772.35,0.84442762]
[1754563140309,0.86136472,773.77,772.36,0.84442762]
[1754563140504,0.86136472,773.86,772.31,0.84442762]
[1754563140805,0.86136472,773.87,772.33,0.84442762]
[1754563141305,0.86136472,773.92,772.38,0.84442762]
[1754563141905,0.86136472,773.91,772.38,0.84442762]
[1754563142308,0.86136472,773.9,772.38,0.84442762]
[1754563143304,0.86136472,773.9,772.39,0.84442762]
[1754563143508,1.027,773.89,772.39,0.84442762]
[1754563143707,1.027,773.89,772.38,0.84442762]
[1754563144207,1.88836472,773.89,772.39,0.84442762]
[1754563145309,0.86136472,773.88,772.39,0.84442762]
[1754563145605,1.027,773.89,772.38,0.84442762]
[1754563146309,0.86136472,773.82,772.43,0.84442762]
[1754563147409,0.86136472,773.81,772.43,0.84442762]
[1754563147606,0.86136472,773.82,772.43,0.84442762]
[1754563148304,0.86136472,773.81,772.43,0.84442762]
[1754563148805,0.86136472,773.82,772.43,0.84442762]
[1754563149205,1.027,773.89,772.43,0.84442762]
[1754563149206,0.86136472,773.81,772.43,0.84442762]
[1754563149705,0.86136472,773.81,772.44,0.84442762]
[1754563149905,0.86136472,773.83,772.46,0.84442762]
[1754563150306,0.86136472,773.82,772.46,0.84442762]
[1754563150805,0.86136472,773.84,772.49,0.84442762]
[1754563151312,0.86136472,773.83,772.49,0.84442762]
[1754563151605,0.86136472,773.84,772.49,0.84442762]
[1754563151810,0.86136472,773.85,772.48,0.84442762]
[1754563152309,0.86136472,773.84,772.49,0.84442762]
[1754563153207,0.86136472,773.83,772.49,0.84442762]
[1754563154308,0.86136472,773.82,772.49,0.84442762]
[1754563154508,0.86136472,773.81,772.5,0.84442762]
[1754563154709,0.86136472,773.84,772.54,0.84442762]
[1754563156410,0.86136472,773.83,772.55,0.84442762]
[1754563156815,0.86136472,773.82,772.55,0.84442762]
[1754563157412,0.86136472,773.81,772.55,0.84442762]
[1754563158215,0.86136472,773.8,772.56,0.84442762]
[1754563159222,0.86136472,773.79,772.56,0.84442762]
[1754563159421,0.86136472,773.78,772.57,0.84442762]
[1754563159830,0.86136472,773.88,772.5,0.84442762]
[1754563160021,1.027,773.89,772.49,0.84442762]
[1754563160221,1.027,773.89,772.77,0.84442762]
[1754563160423,1.027,773.89,772.79,0.84442762]
[1754563160621,0.86136472,774.04,772.79,0.84442762]
[1754563160822,0.22492753,774.11,772.73,0.84442762]
[1754563161022,0.22492753,774.11,772.74,0.84442762]
[1754563161317,0.22492753,774.11,772.75,0.84442762]
[1754563161818,1.08629225,774.11,772.75,0.84442762]
[1754563162422,0.86136472,774.1,772.75,0.84442762]
[1754563162724,0.86136472,774.09,772.76,0.84442762]
[1754563163225,0.86136472,774.1,772.76,0.84442762]
[1754563163424,0.86136472,774.09,772.76,0.84442762]
[1754563163721,0.22492753,774.11,772.75,0.84442762]
[1754563164424,0.22492753,774.11,771.94,0.22522304]
[1754563164425,1.08629225,774.11,772.76,0.84442762]
[1754563164721,0.86136472,774.1,772.77,0.84442762]
[1754563164919,0.86136472,774.1,772.76,0.84442762]
[1754563165119,0.86136472,774.04,772.8,0.84442762]
[1754563165620,0.848,774.03,772.8,0.84442762]
[1754563166425,0.848,774.03,772.84,0.84442762]
[1754563167124,0.848,774.03,772.83,0.84442762]
[1754563167624,0.848,774.03,772.87,0.84442762]
[1754563167924,0.848,774.03,772.91,0.84442762]
[1754563168121,0.848,774.03,772.89,0.84442762]
[1754563168326,0.848,774.03,772.9,0.84442762]
[1754563168924,0.848,774.03,772.88,0.84442762]
[1754563170025,0.848,774.03,772.87,0.84442762]
[1754563170527,0.848,774.03,772.95,0.84442762]
[1754563170826,0.848,774.03,772.98,0.84442762]
[1754563171023,0.848,774.03,772.97,0.84442762]
[1754563171224,0.848,774.03,773.07,0.84442762]
[1754563171430,0.848,774.03,773.03,0.84442762]
[1754563171626,0.848,774.03,773.06,0.84442762]
[1754563172128,0.848,774.03,773.05,0.84442762]
[1754563172823,0.848,774.03,773.07,0.84442762]
[1754563173025,0.848,774.03,773.08,0.84442762]
[1754563173226,0.848,774.03,772.96,0.84442762]
[1754563174230,0.848,774.03,772.95,0.84442762]
[1754563174830,0.848,774.03,772.92,0.84442762]
[1754563175026,0.848,774.03,772.9,0.84442762]
[1754563175625,0.848,774.03,772.91,0.84442762]
[1754563175826,0.848,774.03,772.92,0.84442762]
[1754563178334,0.848,774.03,772.91,0.84442762]
[1754563179135,0.848,774.03,772.92,0.84442762]
[1754563181540,0.848,774.03,772.91,0.84442762]
[1754563181739,0.848,774.03,772.9,0.84442762]
[1754563181936,0.848,774.03,772.94,0.84442762]
[1754563182139,0.848,774.03,772.96,0.84442762]
[1754563184236,0.848,774.03,773.0,0.84442762]
[1754563185941,0.848,774.03,773.02,0.84442762]
[1754563186845,0.848,774.03,773.03,0.84442762]
[1754563187047,0.848,774.03,773.05,0.84442762]
[1754563187546,0.848,774.03,773.04,0.84442762]
[1754563188446,0.848,774.03,773.08,0.84442762]
[1754563188646,1.08623702,774.37,773.08,0.84442762]
[1754563190347,0.86136472,774.36,773.07,0.84442762]
[1754563190548,0.86136472,774.35,773.06,0.84442762]
[1754563190746,0.2248723,774.37,773.04,0.84442762]
[1754563190949,0.86136472,774.33,773.0,0.84442762]
[1754563191249,0.86136472,774.33,772.99,0.84442762]
[1754563191544,0.843,774.32,773.0,0.84442762]
[1754563191846,1.70436472,774.32,773.0,0.84442762]
[1754563192947,0.86136472,774.31,772.98,0.84442762]
[1754563193546,0.86136472,774.3,772.99,0.84442762]
[1754563193951,0.86136472,774.27,773.01,0.84442762]
[1754563194451,0.86136472,774.26,773.01,0.84442762]
[1754563195151,0.86136472,774.27,773.01,0.84442762]
[1754563195352,0.86136472,774.26,773.01,0.84442762]
[1754563195548,0.843,774.32,772.9,0.84442762]
[1754563195949,0.843,774.32,773.14,0.84442762]
[1754563196146,0.843,774.32,773.15,0.84442762]
[1754563196452,0.843,774.32,773.17,0.84442762]
[1754563196947,0.843,774.32,773.2,0.84442762]
[1754563197349,0.843,774.32,772.94,1.1426031]
[1754563197350,0.843,774.32,773.19,0.84442762]
[1754563197546,0.843,774.32,771.94,0.22522304]
[1754563197547,0.843,774.32,773.25,0.84442762]
[1754563197748,0.843,774.32,773.26,0.84442762]
[1754563198650,0.843,774.32,773.25,0.84442762]
[1754563198848,0.843,774.32,773.26,0.84442762]
[1754563199951,0.843,774.32,773.27,0.84442762]
[1754563200550,0.843,774.32,773.25,0.84442762]
[1754563200750,0.843,774.32,773.3,0.84442762]
[1754563201050,0.843,774.32,773.31,0.84442762]
[1754563202552,0.843,774.32,773.34,0.84442762]
[1754563202754,0.843,774.32,773.29,0.84442762]
[1754563202959,0.843,774.32,773.27,0.84442762]
[1754563203260,0.843,774.32,773.34,0.84442762]
[1754563203753,0.843,774.32,773.41,0.84442762]
[1754563203953,0.843,774.32,773.45,0.84442762]
[1754563204152,0.843,774.32,773.42,0.84442762]
[1754563204354,0.843,774.32,773.4,0.84442762]
[1754563205054,0.843,774.32,773.49,0.84442762]
[1754563205255,0.843,774.32,773.47,0.84442762]
[1754563205558,0.843,774.32,773.44,0.84442762]
[1754563206059,0.843,774.32,773.42,0.84442762]
[1754563206459,0.843,774.32,773.38,0.84442762]
[1754563208959,0.843,774.32,773.36,0.84442762]
[1754563209357,0.843,774.32,773.35,0.84442762]
[1754563209556,0.843,774.32,773.36,0.84442762]
[1754563209861,0.843,774.32,773.39,0.84442762]
[1754563211962,0.843,774.32,773.38,0.84442762]
[1754563212162,0.843,774.32,773.43,0.84442762]
[1754563212662,0.843,774.32,773.44,0.84442762]
[1754563213562,0.843,774.32,773.46,0.84442762]
[1754563214158,0.843,774.32,773.45,0.84442762]
[1754563215166,0.843,774.32,773.36,0.84442762]
[1754563215364,0.843,774.32,773.42,0.84442762]
[1754563215660,0.843,774.32,773.51,0.84442762]
[1754563215964,0.843,774.32,773.48,0.84442762]
[1754563216164,0.843,774.32,773.49,0.84442762]
[1754563216360,0.843,774.32,773.48,0.84442762]
[1754563216866,0.843,774.32,773.47,0.84442762]
[1754563217166,0.843,774.32,773.38,0.84442762]
[1754563217967,0.843,774.32,773.56,0.84442762]
[1754563218367,0.843,774.32,773.31,1.1426031]
[1754563218368,0.843,774.32,773.57,0.84442762]
[1754563218568,0.843,774.32,773.56,0.84442762]
[1754563218869,0.843,774.32,773.53,0.84442762]
[1754563219367,0.843,774.32,773.38,0.84442762]
[1754563220968,0.843,774.32,773.37,0.84442762]
[1754563221166,0.843,774.32,772.57,0.22479386]
[1754563221167,0.843,774.32,773.42,0.84442762]
[1754563221372,0.843,774.32,773.43,0.84442762]
[1754563221667,0.843,774.32,773.52,0.84329505]
[1754563222172,0.843,774.32,773.53,0.84329505]
[1754563222373,0.22472998,774.92,773.53,0.84329505]
[1754563223272,0.22472998,774.92,773.56,0.84329505]
[1754563223768,0.22472998,774.92,773.13,1.7139047]
[1754563223769,0.22472998,774.92,773.54,0.84329505]
[1754563224972,0.22472998,774.92,773.53,0.84329505]
[1754563225573,0.22472998,774.92,773.54,0.84329505]
[1754563225772,0.22472998,774.92,773.53,0.84329505]
[1754563226274,0.22472998,774.92,773.54,0.84329505]
[1754563226570,0.22472998,774.92,773.55,0.84329505]
[1754563226976,0.22472998,774.92,773.57,0.84329505]
[1754563227175,0.22472998,774.92,773.56,0.84329505]
[1754563227471,0.22472998,774.92,773.58,0.84329505]
[1754563227677,0.22472998,774.92,773.57,0.84329505]
[1754563227875,0.22472998,774.92,773.59,0.84329505]
[1754563228577,0.22472998,774.92,773.6,0.84329505]
[1754563229074,0.22472998,774.92,773.39,1.1426031]
[1754563229075,0.22472998,774.92,773.61,0.84329505]
[1754563229876,1.1609896,775.35,773.61,0.84329505]
[1754563230085,4.0634638,776.9,772.57,0.22479386]
[1754563230086,1.1609896,775.64,773.72,0.84329505]
[1754563230274,0.22461032,775.16,773.72,0.84329505]
[1754563230477,0.22461032,775.16,772.57,0.22479386]
[1754563230478,0.22461032,775.16,773.75,0.84329505]
[1754563230676,0.22461032,775.16,773.78,0.84329505]
[1754563231081,0.22461032,775.16,773.76,0.84329505]
[1754563231274,0.22461032,775.16,773.77,0.84329505]
[1754563232677,0.22461032,775.16,773.78,0.84329505]
[1754563233082,0.796,775.34,773.78,0.84329505]
[1754563233277,0.796,775.34,773.84,0.84329505]
[1754563233475,0.22458061,775.27,773.83,0.84329505]
[1754563233674,0.796,775.34,773.85,0.84329505]
[1754563233882,0.796,775.34,773.95,0.84329505]
[1754563234080,0.796,775.34,774.0,0.84329505]
[1754563234277,0.796,775.34,774.03,0.84329505]
[1754563234477,0.796,775.34,773.95,0.84329505]
[1754563234777,0.796,775.34,774.13,0.84329505]
[1754563234980,0.796,775.34,774.12,0.84329505]
[1754563235480,0.796,775.34,774.31,0.84329505]
[1754563235681,0.796,775.34,774.3,0.84329505]
[1754563236279,0.796,775.34,774.18,0.84329505]
[1754563237079,0.796,775.34,774.2,0.84329505]
[1754563237484,0.796,775.34,774.19,0.84329505]
[1754563238180,0.796,775.34,774.2,0.84329505]
[1754563238384,0.796,775.34,774.18,0.84329505]
[1754563239382,0.796,775.34,774.23,0.84329505]
[1754563239788,0.796,775.34,774.27,0.84329505]
[1754563240488,0.796,775.34,774.24,0.84329505]
[1754563241085,0.22450454,775.55,774.24,0.84329505]
[1754563241285,0.22450454,775.55,774.23,0.84329505]
[1754563241487,0.22450454,775.55,774.22,0.84329505]
[1754563243190,0.22450454,775.55,774.23,0.84329505]
[1754563243394,0.22450454,775.55,774.22,0.84329505]
[1754563244292,0.22450454,775.55,774.21,0.84329505]
[1754563245093,0.22450454,775.55,774.2,0.84329505]
[1754563245294,0.22450454,775.55,774.18,0.84329505]
[1754563245493,0.22450454,775.55,773.97,1.1426031]
[1754563245494,1.1609896,776.4,774.12,0.84329505]
[1754563245696,0.22442998,775.65,774.12,0.84329505]
[1754563245893,1.1609896,776.45,774.17,0.84329505]
[1754563246092,0.96,775.64,774.17,0.84329505]
[1754563246297,0.96,775.64,774.16,0.84329505]
[1754563247497,0.96,775.64,774.15,0.84329505]
[1754563248194,0.96,775.64,774.16,0.84329505]
[1754563248896,0.96,775.64,774.18,0.84329505]
[1754563249096,0.96,775.64,774.2,0.84329505]
[1754563249291,0.96,775.64,774.07,0.84329505]
[1754563249494,0.96,775.64,774.12,0.84329505]
[1754563249697,0.96,775.64,774.13,0.84329505]
[1754563250796,0.96,775.64,771.34,3.9991111]
[1754563250797,0.96,775.64,774.28,0.84329505]
[1754563250996,0.96,775.64,774.27,0.84329505]
[1754563251192,0.96,775.64,774.06,1.1426031]
[1754563251193,0.96,775.64,774.28,0.84329505]
[1754563251395,0.96,775.64,774.07,1.1426031]
[1754563251396,0.96,775.64,774.29,0.84329505]
[1754563251597,0.96,775.64,774.26,0.84329505]
[1754563251795,0.96,775.64,774.04,1.1426031]
[1754563251995,0.96,775.64,774.26,0.83580363]
[1754563252296,0.96,775.64,774.27,0.83580363]
[1754563252496,0.96,775.64,774.26,0.83580363]
[1754563253197,0.96,775.64,774.27,0.83580363]
[1754563253794,0.96,775.64,774.26,0.83580363]
[1754563253998,0.96,775.64,774.27,0.83580363]
[1754563254198,0.96,775.64,774.28,0.83580363]
[1754563254395,0.96,775.64,774.27,0.83580363]
[1754563254596,0.96,775.64,774.26,0.83580363]
[1754563255299,0.96,775.64,774.28,0.83580363]
[1754563256097,0.96,775.64,774.32,0.83580363]
[1754563256298,0.96,775.64,774.4,0.83580363]
[1754563256596,0.96,775.64,774.41,0.83580363]
[1754563256796,0.96,775.64,774.42,0.83580363]
[1754563256998,0.96,775.64,772.17,3.9991111]
[1754563256999,0.96,775.64,774.44,0.83580363]
[1754563257199,0.96,775.64,774.45,0.83580363]
[1754563257402,0.96,775.64,774.43,0.83580363]
[1754563257699,0.96,775.64,774.44,0.83580363]
[1754563258304,0.96,775.64,774.45,0.83580363]
[1754563258503,0.96,775.64,774.44,0.83580363]
[1754563258704,0.96,775.64,774.43,0.83580363]
[1754563259300,0.96,775.64,774.45,0.83580363]
[1754563259901,0.96,775.64,774.44,0.83580363]
[1754563260102,0.96,775.64,774.45,0.83580363]
[1754563260803,0.96,775.64,774.47,0.83580363]
[1754563261011,0.96,775.64,774.46,0.83580363]
[1754563261403,0.96,775.64,774.5,0.83580363]
[1754563261603,0.96,775.64,774.49,0.83580363]
[1754563261808,0.96,775.64,774.47,0.83580363]
[1754563262003,0.96,775.64,774.46,0.83580363]
[1754563262203,0.96,775.64,774.45,0.83580363]
[1754563262611,0.96,775.64,774.44,0.83580363]
[1754563263708,0.96,775.64,774.46,0.83580363]
[1754563264110,0.96,775.64,774.42,0.83580363]
[1754563264711,0.96,775.64,774.45,0.83580363]
[1754563265111,0.22439307,776.09,774.45,0.83580363]
[1754563265713,0.22439307,776.09,774.46,0.83580363]
[1754563266113,0.22439307,776.09,774.4,0.83580363]
[1754563267714,0.22439307,776.09,774.46,0.83580363]
[1754563267914,0.22439307,776.09,774.5,0.83580363]
[1754563268116,0.22439307,776.09,774.47,0.83580363]
[1754563268313,0.22439307,776.09,774.43,0.83580363]
[1754563269418,0.22439307,776.09,774.4,0.83580363]
[1754563269614,0.22439307,776.09,774.41,0.83580363]
[1754563269912,0.22439307,776.09,774.4,0.83580363]
[1754563271018,0.793,776.08,774.41,0.83580363]
[1754563272314,0.793,776.08,774.42,0.83580363]
[1754563273419,0.793,776.08,774.41,0.83580363]
[1754563273618,0.793,776.08,774.47,0.83580363]
[1754563274116,0.793,776.08,774.45,0.83580363]
[1754563274319,0.793,776.08,774.46,0.83580363]
[1754563275022,0.793,776.08,774.47,0.83580363]
[1754563275222,0.793,776.08,774.48,0.83580363]
[1754563275422,0.793,776.08,774.49,0.83580363]
[1754563276420,0.793,776.08,774.53,0.83580363]
[1754563276821,0.793,776.08,774.61,0.83580363]
[1754563277324,0.793,776.08,774.62,0.83580363]
[1754563277624,0.793,776.08,774.63,0.83580363]
[1754563279325,0.793,776.08,774.64,0.83580363]
[1754563279925,0.793,776.08,774.39,1.1426031]
[1754563279926,0.793,776.08,774.63,0.83580363]
[1754563280122,0.793,776.08,774.61,0.83580363]
[1754563280325,0.793,776.08,774.63,0.83580363]
[1754563280724,0.793,776.08,774.61,0.83580363]
[1754563281125,0.793,776.08,774.35,1.1426031]
[1754563281126,0.793,776.08,774.65,0.83580363]
[1754563281327,0.793,776.08,774.67,0.83580363]
[1754563281829,0.793,776.08,774.66,0.83580363]
[1754563282324,0.793,776.08,774.68,0.83580363]
[1754563283428,0.793,776.08,774.7,0.83580363]
[1754563284325,0.793,776.08,774.71,0.83565394]
[1754563285529,0.793,776.08,774.73,0.83565394]
[1754563286230,0.793,776.08,774.76,0.83565394]
[1754563286629,0.793,776.08,774.77,0.83565394]
[1754563287025,0.22432292,776.27,774.77,0.83565394]
[1754563287230,1.1609896,776.62,774.83,0.83565394]
[1754563287427,1.1609896,777.0,774.68,0.83565394]
[1754563287627,0.22426076,776.27,774.68,0.83565394]
[1754563287829,1.1609896,777.0,774.68,0.83565394]
[1754563288129,0.22425281,776.27,774.69,0.83565394]
[1754563288329,1.1609896,776.95,774.88,0.83565394]
[1754563288530,1.1609896,776.83,774.93,0.83565394]
[1754563288726,0.22424198,776.32,774.94,0.83565394]
[1754563288931,1.1609896,776.78,774.95,0.83565394]
[1754563289130,0.2242362,776.36,774.95,0.83565394]
[1754563289330,0.2242362,776.36,774.96,0.83565394]
[1754563290429,0.2242362,776.36,774.97,0.83565394]
[1754563290632,0.2242362,776.36,774.98,0.83565394]
[1754563291331,0.2242362,776.36,774.99,0.83565394]
[1754563291527,0.2242362,776.36,774.98,0.83565394]
[1754563291733,0.2242362,776.36,774.99,0.83565394]
[1754563292329,0.2242362,776.36,775.0,0.83565394]
[1754563293228,0.2242362,776.36,773.82,2.8565079]
[1754563293229,0.2242362,776.36,775.01,0.83565394]
[1754563293433,0.2242362,776.36,775.02,0.83565394]
[1754563293932,0.2242362,776.36,775.03,0.83565394]
[1754563294233,0.2242362,776.36,775.06,0.83565394]
[1754563294430,0.2242362,776.36,775.09,0.83565394]
[1754563294626,0.2242362,776.36,774.08,3.9991111]
[1754563294627,0.2242362,776.36,774.99,0.83565394]
[1754563295333,0.2242362,776.36,775.09,0.83565394]
[1754563295530,1.1609896,776.71,775.11,0.83565394]
[1754563295733,0.22421814,776.51,775.11,0.83565394]
[1754563296534,1.1609896,776.71,775.11,0.83565394]
[1754563296835,1.7414845,776.91,773.54,3.9991111]
[1754563296836,0.22418997,776.62,775.23,0.83565394]
[1754563297035,0.22418997,776.62,775.24,0.83565394]
[1754563297229,0.22418997,776.62,775.27,0.83565394]
[1754563297430,0.22418997,776.62,775.29,0.83565394]
[1754563297731,0.22418997,776.62,775.34,0.83565394]
[1754563297934,0.22418997,776.62,775.32,0.83565394]
[1754563298129,0.22418997,776.62,775.31,0.83565394]
[1754563298334,0.22418997,776.62,775.24,0.83565394]
[1754563298536,0.22418997,776.62,775.25,0.83565394]
[1754563298933,0.22418997,776.62,775.28,0.83565394]
[1754563299338,0.22418997,776.62,775.29,0.83565394]
[1754563299538,0.22418997,776.62,775.28,0.83565394]
[1754563299734,0.22418997,776.62,775.29,0.83565394]
[1754563300538,0.22418997,776.62,775.28,0.83565394]
[1754563301040,0.22418997,776.62,775.25,0.83565394]
[1754563301235,0.22418997,776.62,775.24,0.83565394]
[1754563301637,0.22418997,776.62,775.22,0.83565394]
[1754563303042,0.22418997,776.62,775.21,0.83565394]
[1754563303541,0.22418997,776.62,775.18,0.83565394]
[1754563304641,0.22418997,776.62,775.16,0.83565394]
[1754563304941,0.22418997,776.62,775.19,0.83565394]
[1754563305141,0.22418997,776.62,775.17,0.83565394]
[1754563305342,0.22418997,776.62,775.22,0.83565394]
[1754563305838,0.22418997,776.62,775.24,0.83565394]
[1754563306043,0.22418997,776.62,775.27,0.83565394]
[1754563306342,0.22418997,776.62,775.32,0.83565394]
[1754563306543,0.22418997,776.62,773.3,3.9991111]
[1754563306544,0.22418997,776.62,775.29,0.83565394]
[1754563307738,0.22418997,776.62,775.32,0.83565394]
[1754563307939,0.22418997,776.62,775.33,0.83565394]
[1754563308338,1.1609896,777.13,775.55,0.83565394]
[1754563308642,0.22410407,776.88,775.58,0.83565394]
[1754563309741,0.22410407,776.88,775.57,0.83565394]
[1754563310442,0.22410407,776.88,775.53,0.83565394]
[1754563310642,0.22410407,776.88,775.52,0.83565394]
[1754563311242,0.22410407,776.88,775.53,0.83565394]
[1754563311443,0.22410407,776.88,775.52,0.83565394]
[1754563311742,0.22410407,776.88,775.51,0.83565394]
[1754563312939,0.22410407,776.88,775.49,0.83565394]
[1754563313239,0.842,776.87,775.5,0.83565394]
[1754563313443,0.842,776.87,775.51,0.83565394]
[1754563313644,0.842,776.87,775.5,0.83565394]
[1754563314540,0.842,776.87,775.49,0.83565394]
[1754563314744,0.842,776.87,775.5,0.83565394]
[1754563316940,0.842,776.87,775.42,0.83565394]
[1754563317242,0.842,776.87,775.31,0.83565394]
[1754563317842,0.842,776.87,775.29,0.83565394]
[1754563318644,0.842,776.87,775.28,0.83565394]
[1754563319648,0.842,776.87,775.29,0.83565394]
[1754563320749,0.842,776.87,775.28,0.83565394]
[1754563321645,0.842,776.87,775.29,0.83565394]
[1754563321847,0.842,776.87,775.28,0.83565394]
[1754563322246,0.842,776.87,775.29,0.83565394]
[1754563322947,0.842,776.87,775.09,1.1426031]
[1754563322948,0.842,776.87,775.3,0.83565394]
[1754563323858,1.1609896,776.86,775.18,0.83565394]
[1754563324554,0.842,776.87,775.19,0.83565394]
[1754563324555,1.1609896,776.84,775.19,0.83565394]
[1754563324757,1.1609896,776.83,775.19,0.83565394]
[1754563325053,1.1609896,776.82,775.18,0.83565394]
[1754563325460,0.842,776.87,775.13,0.83565394]
[1754563325659,0.842,776.87,775.14,0.83565394]
[1754563325856,0.842,776.87,775.13,0.83565394]
[1754563326056,2.0029896,776.87,775.14,0.83565394]
[1754563326260,1.1609896,776.86,775.14,0.83565394]
[1754563326560,1.1609896,776.85,775.15,0.83565394]
[1754563326759,1.1609896,776.86,775.14,0.83565394]
[1754563327060,1.1609896,776.85,775.14,0.83565394]
[1754563328162,1.1609896,776.85,775.15,0.83565394]
[1754563328361,1.1609896,776.84,775.15,0.83565394]
[1754563329364,1.1609896,776.83,775.15,0.83565394]
[1754563329562,1.1609896,776.77,775.16,0.83565394]
[1754563329762,1.1609896,776.84,775.14,0.83565394]
[1754563330168,1.1609896,776.84,775.12,0.83565394]
[1754563330369,1.1609896,776.69,775.18,0.83565394]
[1754563330566,1.1609896,776.67,775.18,0.83565394]
[1754563330770,1.1609896,776.68,775.17,0.83565394]
[1754563330970,1.1609896,776.75,775.13,0.83565394]
[1754563331170,0.842,776.87,774.94,0.83565394]
[1754563331171,1.1609896,776.55,774.94,0.83565394]
[1754563331370,0.842,776.87,775.02,0.83565394]
[1754563331371,1.1609896,776.63,775.02,0.83565394]
[1754563331573,1.1609896,776.62,775.03,0.83565394]
[1754563331772,1.1609896,776.45,774.85,0.83565394]
[1754563331965,1.1609896,776.55,774.8,0.83565394]
[1754563332166,1.1609896,776.56,774.81,0.83565394]
[1754563332370,1.1609896,776.54,774.82,0.83565394]
[1754563332666,1.1609896,776.34,774.62,0.83565394]
[1754563333068,1.1609896,776.35,774.61,0.83565394]
[1754563333272,1.1609896,776.34,774.6,0.83565394]
[1754563333573,1.1609896,776.3,774.62,0.83565394]
[1754563333772,1.1609896,776.38,774.69,0.83565394]
[1754563334071,1.1609896,776.38,774.7,0.83565394]
[1754563334268,1.1609896,776.39,774.7,0.83565394]
[1754563334469,1.1609896,776.46,774.77,0.83565394]
[1754563334668,1.1609896,776.46,774.78,0.83565394]
[1754563334874,1.1609896,776.47,774.78,0.83565394]
[1754563335068,1.1609896,776.48,774.79,0.83565394]
[1754563335273,1.1609896,776.32,774.85,0.83565394]
[1754563335470,1.1609896,776.49,774.78,0.83565394]
[1754563336069,1.1609896,776.5,774.78,0.83565394]
[1754563336773,1.1609896,776.61,774.89,0.83565394]
[1754563337176,1.1609896,776.62,774.87,0.83565394]
[1754563337573,1.1609896,776.57,774.89,0.83565394]
[1754563337976,1.1609896,776.6,774.89,0.83565394]
[1754563338474,1.1609896,776.59,774.89,0.83565394]
[1754563339172,1.1609896,776.59,774.66,1.1426031]
[1754563339173,1.1609896,776.58,774.88,0.83565394]
[1754563339575,1.1609896,776.59,774.88,0.83565394]
[1754563339872,1.1609896,776.6,774.88,0.83565394]
[1754563341073,1.1609896,776.6,774.65,1.1426031]
[1754563341074,1.1609896,776.58,774.9,0.83565394]
[1754563341278,1.1609896,776.65,774.88,0.83565394]
[1754563341579,1.1609896,776.64,774.87,0.83565394]